bitfinex-derivatives/quotes_BTCF0:USTF0_20220102
["timestamp","ask_amount","ask_price","bid_price","bid_amount"]
[1641086893146,0.35357189,47436.0,47428.0,0.14033567]
[1641086893342,0.18,47429.0,47416.0,0.3445]
[1641086893541,0.18,47425.0,47416.0,0.3445]
[1641086893839,0.27216,47425.0,47416.0,0.3445]
[1641086894240,0.281954,47425.0,47416.0,0.3445]
[1641086894444,0.281954,47425.0,47415.0,1.45737691]
[1641086894644,0.281954,47425.0,47418.0,1.31659711]
[1641086894645,0.56262534,47425.0,47418.0,1.31659711]
[1641086894843,0.75262534,47425.0,47418.0,1.31659711]
[1641086895842,0.75262534,47425.0,47415.0,1.45737691]
[1641086895843,0.75262534,47425.0,47416.0,1.19708708]
[1641086896244,0.56262534,47425.0,47416.0,1.19708708]
[1641086896846,0.75062534,47425.0,47416.0,1.19708708]
[1641086898248,0.56262534,47425.0,47416.0,1.19708708]
[1641086898445,0.69122769,47425.0,47419.0,1.31659711]
[1641086898645,0.69122769,47425.0,47422.0,1.19708708]
[1641086898847,0.88222769,47425.0,47422.0,1.19708708]
[1641086899650,0.88222769,47425.0,47423.0,1.19708708]
[1641086900048,0.69122769,47425.0,47423.0,1.19708708]
[1641086900449,0.69122769,47425.0,47422.0,1.19708708]
[1641086900949,0.88222769,47425.0,47422.0,1.19708708]
[1641086901552,0.88222769,47425.0,47423.0,1.19708708]
[1641086902152,0.69122769,47425.0,47423.0,1.19708708]
[1641086902750,0.88222769,47425.0,47423.0,1.19708708]
[1641086904170,0.69122769,47425.0,47423.0,1.19708708]
[1641086904773,0.88222769,47425.0,47423.0,1.19708708]
[1641086904970,0.88222769,47425.0,47422.0,1.19708708]
[1641086905572,0.88222769,47425.0,47424.0,0.10013]
[1641086905874,0.45993802,47425.0,47424.0,0.10013]
[1641086906072,0.12860235,47425.0,47424.0,0.10013]
[1641086906876,0.23560235,47425.0,47424.0,0.10113]
[1641086907475,0.46053595,47425.0,47424.0,0.10113]
[1641086908175,0.35353595,47425.0,47424.0,0.10113]
[1641086908677,0.35353595,47426.0,47424.0,0.10113]
[1641086908875,0.163,47425.0,47424.0,0.10013]
[1641086909076,0.163,47425.0,47424.0,0.10113]
[1641086909276,0.163,47425.0,47424.0,0.10013]
[1641086910276,0.35353595,47427.0,47424.0,1.53641776]
[1641086910877,0.51853595,47427.0,47424.0,1.53641776]
[1641086912279,0.35353595,47427.0,47424.0,1.53641776]
[1641086912980,0.51953595,47427.0,47424.0,1.53641776]
[1641086914184,0.35353595,47427.0,47424.0,1.53641776]
[1641086914988,0.51953595,47427.0,47424.0,1.53641776]
[1641086915888,0.51953595,47427.0,47425.0,0.20108472]
[1641086916287,0.35353595,47427.0,47425.0,0.20108472]
[1641086917291,0.35353595,47427.0,47425.0,0.02108472]
[1641086917790,0.35353595,47427.0,47426.0,0.18]
[1641086919293,0.35353595,47428.0,47426.0,0.18]
[1641086920101,0.35353595,47428.0,47426.0,1.61628776]
[1641086920898,0.58922658,47430.0,47427.0,0.0618571]
[1641086921097,0.82491721,47432.0,47429.0,1.12033567]
[1641086921397,1e-08,47433.0,47431.0,0.02107989]
[1641086921596,1.17845316,47434.0,47432.0,0.18]
[1641086921799,1.17845316,47438.0,47432.0,1.51991789]
[1641086921998,1.17845316,47438.0,47437.0,0.981]
[1641086922198,1.17845316,47438.0,47437.0,1.05902]
[1641086922497,1.17845316,47438.0,47437.0,0.87902]
[1641086922899,1.31145316,47438.0,47437.0,1.06502]
[1641086923199,0.133,47438.0,47437.0,1.20535567]
[1641086924300,1.17845316,47441.0,47437.0,1.19935567]
[1641086924500,1.17845316,47441.0,47438.0,0.18]
[1641086924900,1.28245316,47441.0,47438.0,0.18]
[1641086925502,0.104,47441.0,47438.0,0.18]
[1641086926303,1.17845316,47442.0,47438.0,0.18]
[1641086926705,0.14033567,47443.0,47437.0,2.33711134]
[1641086926903,1.47605562,47442.0,47439.0,0.18]
[1641086928206,1.29405562,47442.0,47439.0,0.18]
[1641086929007,1.53629539,47453.0,47441.0,0.02107708]
[1641086929207,0.14033567,47452.0,47446.0,0.18]
[1641086931024,0.14033567,47452.0,47446.0,0.365]
[1641086931225,0.14033567,47452.0,47446.0,0.185]
[1641086932927,0.14033567,47452.0,47447.0,0.02107488]
[1641086933130,0.14033567,47452.0,47446.0,0.184]
[1641086933327,0.14033567,47452.0,47447.0,0.02107488]
[1641086934027,0.14033567,47452.0,47446.0,0.184]
[1641086934227,1.42016508,47451.0,47445.0,0.94033567]
[1641086934727,1.42016508,47451.0,47447.0,0.02107488]
[1641086935028,1.42016508,47451.0,47447.0,0.10404488]
[1641086935830,0.14033567,47452.0,47447.0,0.10404488]
[1641086936028,1.30101733,47449.0,47447.0,0.94248334]
[1641086936229,1.30101733,47449.0,47447.0,0.92140846]
[1641086936830,1.30101733,47450.0,47448.0,0.83843846]
[1641086939034,0.11116308,47451.0,47449.0,1.19794838]
[1641086941036,0.11116308,47451.0,47449.0,1.38594838]
[1641086943344,0.11116308,47451.0,47450.0,0.8384254]
[1641086944940,0.11116308,47451.0,47450.0,1.0264254]
[1641086945640,0.11116308,47451.0,47450.0,0.188]
[1641086946243,0.11116308,47451.0,47449.0,1.19794838]
[1641086946642,0.18507308,47451.0,47449.0,1.19794838]
[1641086946943,0.18507308,47451.0,47449.0,1.38494838]
[1641086947143,0.18,47450.0,47449.0,1.38494838]
[1641086947345,0.18,47450.0,47449.0,0.187]
[1641086948348,0.18,47450.0,47448.0,1.19794838]
[1641086948647,0.29116308,47450.0,47448.0,1.19794838]
[1641086948845,0.29116308,47450.0,47445.0,1.19794838]
[1641086949047,0.29116308,47450.0,47448.0,0.187]
[1641086949247,0.23116308,47450.0,47448.0,0.187]
[1641086949447,1.41315729,47449.0,47448.0,0.187]
[1641086950245,1.41315729,47449.0,47445.0,1.19794838]
[1641086950246,1.41315729,47449.0,47446.0,0.18]
[1641086950448,1.41315729,47450.0,47446.0,1.37794838]
[1641086950649,1.41315729,47450.0,47446.0,1.46054838]
[1641086951050,1.41315729,47450.0,47446.0,1.64854838]
[1641086951250,0.14033567,47452.0,47446.0,1.46854838]
[1641086951251,0.82913679,47448.0,47446.0,1.46854838]
[1641086951449,0.82913679,47448.0,47446.0,0.2706]
[1641086952048,0.82913679,47448.0,47446.0,0.188]
[1641086952257,1.18448113,47450.0,47445.0,1.31754616]
[1641086952451,1.18448113,47449.0,47444.0,1.31754616]
[1641086953050,0.18,47447.0,47444.0,1.50454616]
[1641086953354,0.82898513,47446.0,47444.0,0.187]
[1641086954153,0.82898513,47445.0,47444.0,0.187]
[1641086954553,0.82898513,47445.0,47443.0,0.14033567]
[1641086954953,0.82898513,47445.0,47443.0,0.32133567]
[1641086955152,0.94014821,47445.0,47443.0,0.32133567]
[1641086956053,0.59109577,47444.0,47443.0,0.32133567]
[1641086956251,0.59109577,47444.0,47443.0,0.14033567]
[1641086956954,0.35469916,47445.0,47443.0,0.33133567]
[1641086957251,0.35469916,47445.0,47443.0,0.39141567]
[1641086958651,0.35469916,47446.0,47443.0,0.39141567]
[1641086958853,0.35469916,47446.0,47443.0,0.20041567]
[1641086959051,0.35469916,47446.0,47443.0,0.39441567]
[1641086959453,0.35469916,47447.0,47443.0,0.39441567]
[1641086959851,0.35469916,47447.0,47444.0,0.02107617]
[1641086960055,0.35469916,47447.0,47444.0,0.18]
[1641086960251,0.35469916,47447.0,47446.0,0.02107525]
[1641086960654,0.94579493,47449.0,47446.0,0.02107525]
[1641086960854,0.35469916,47449.0,47446.0,0.20107525]
[1641086961057,0.35469916,47449.0,47446.0,0.39707525]
[1641086962556,0.35469916,47449.0,47447.0,0.83772064]
[1641086962857,0.35469916,47449.0,47448.0,0.001]
[1641086963360,0.35469916,47450.0,47448.0,0.83872064]
[1641086963562,0.35469916,47450.0,47448.0,0.83772064]
[1641086964970,0.35469916,47450.0,47448.0,1.03072064]
[1641086967074,0.35469916,47450.0,47448.0,1.03172064]
[1641086967675,0.35469916,47450.0,47449.0,0.14033567]
[1641086967876,0.35469916,47451.0,47449.0,0.97805631]
[1641086968973,0.35469916,47451.0,47449.0,1.17205631]
[1641086970275,0.35469916,47451.0,47449.0,0.97805631]
[1641086971078,0.35469916,47451.0,47449.0,1.16905631]
[1641086971279,0.35469916,47452.0,47450.0,0.83772064]
[1641086971878,0.11169778,47456.0,47449.0,0.33133567]
[1641086972076,1.18448113,47452.0,47449.0,1.64888183]
[1641086972479,1.18448113,47452.0,47449.0,1.45788183]
[1641086972977,0.83711858,47450.0,47449.0,1.45788183]
[1641086973176,0.83711858,47450.0,47449.0,1.64988183]
[1641086973678,0.83711858,47450.0,47449.0,0.33233567]
[1641086974278,0.83711858,47450.0,47449.0,1.64988183]
[1641086974478,0.83711858,47450.0,47449.0,1.45788183]
[1641086975078,0.83711858,47450.0,47449.0,1.65088183]
[1641086976382,0.83711858,47450.0,47449.0,1.45788183]
[1641086977080,0.83711858,47450.0,47449.0,1.65088183]
[1641086977781,0.59794157,47450.0,47449.0,1.65088183]
[1641086978382,0.83711858,47451.0,47449.0,1.45788183]
[1641086978584,0.83711858,47450.0,47449.0,0.14033567]
[1641086979185,0.83711858,47450.0,47449.0,0.33333567]
[1641086979385,0.11169778,47450.0,47449.0,1.65088183]
[1641086979984,0.83711858,47451.0,47449.0,1.65088183]
[1641086980383,0.83711858,47451.0,47449.0,1.45788183]
[1641086980884,0.35840471,47453.0,47450.0,0.83757584]
[1641086983086,0.35840471,47452.0,47450.0,1.02957584]
[1641086984288,0.35840471,47452.0,47450.0,0.192]
[1641086984486,0.35840471,47452.0,47449.0,0.97791151]
[1641086985186,0.35840471,47452.0,47449.0,1.16991151]
[1641086985789,0.35840471,47453.0,47450.0,0.83757584]
[1641086985991,0.35840471,47453.0,47452.0,0.8]
[1641086987092,0.35840471,47453.0,47452.0,0.994]
[1641086988290,0.35840471,47453.0,47452.0,0.8]
[1641086989193,0.35840471,47453.0,47452.0,0.991]
[1641086990395,0.35840471,47453.0,47452.0,0.8]
[1641086991094,0.35840471,47453.0,47452.0,0.991]
[1641086991299,0.35840471,47453.0,47452.0,1.05634]
[1641086992203,0.9557459,47455.0,47452.0,1.89391584]
[1641086992396,0.35840471,47455.0,47452.0,1.89391584]
[1641086994096,0.35840471,47454.0,47452.0,1.89391584]
[1641086994295,0.35840471,47454.0,47452.0,1.70291584]
[1641086995096,0.35840471,47453.0,47452.0,1.05734]
[1641086995297,0.35840471,47453.0,47452.0,0.992]
[1641086996498,0.35840471,47453.0,47452.0,0.8]
[1641086997201,0.35840471,47453.0,47452.0,0.192]
[1641086998302,1.18448113,47458.0,47452.0,0.192]
[1641086998501,1.18448113,47458.0,47450.0,1.31754616]
[1641086998502,1.18448113,47454.0,47450.0,1.31754616]
[1641086999201,1.18448113,47454.0,47450.0,1.50954616]
[1641087000003,0.59870568,47452.0,47450.0,1.50954616]
[1641087000403,0.59870568,47451.0,47449.0,1.47895575]
[1641087001204,0.59870568,47451.0,47449.0,1.66995575]
[1641087001806,0.69256568,47451.0,47449.0,1.66995575]
[1641087002006,0.70235968,47451.0,47449.0,1.50854616]
[1641087002408,0.1121484,47450.0,47449.0,0.191]
[1641087003208,0.1121484,47450.0,47449.0,0.174]
[1641087003407,1.41414261,47450.0,47449.0,0.174]
[1641087004008,0.1121484,47450.0,47449.0,0.174]
[1641087004408,0.1121484,47450.0,47446.0,0.83836184]
[1641087004607,0.18,47447.0,47446.0,0.83836184]
[1641087005309,0.18,47447.0,47446.0,1.02136184]
[1641087005708,0.2921484,47447.0,47446.0,0.183]
[1641087008109,0.1121484,47447.0,47446.0,0.183]
[1641087008409,0.1121484,47447.0,47445.0,0.83836184]
[1641087008610,0.2921484,47447.0,47445.0,0.83836184]
[1641087009110,0.2921484,47447.0,47445.0,1.02136184]
[1641087009312,0.1121484,47446.0,47445.0,1.02136184]
[1641087010513,0.1121484,47446.0,47445.0,0.83836184]
[1641087011113,0.1121484,47446.0,47445.0,0.186]
[1641087011912,1.3135082,47448.0,47445.0,0.186]
[1641087012513,0.18,47446.0,47444.0,0.83836184]
[1641087012714,0.18,47446.0,47445.0,0.83836184]
[1641087013315,1.3135082,47448.0,47445.0,0.83836184]
[1641087013616,0.1121484,47446.0,47445.0,0.83836184]
[1641087013915,1.3135082,47448.0,47444.0,1.02436184]
[1641087014516,1.3135082,47448.0,47444.0,0.83836184]
[1641087014714,0.18,47446.0,47444.0,0.83836184]
[1641087014915,1.3135082,47448.0,47444.0,0.83836184]
[1641087015114,1.3135082,47448.0,47444.0,1.02136184]
[1641087015314,0.1121484,47445.0,47444.0,1.02136184]
[1641087016516,0.1121484,47445.0,47444.0,0.83836184]
[1641087017116,0.1121484,47445.0,47444.0,1.02636184]
[1641087017316,0.1121484,47445.0,47444.0,0.188]
[1641087018220,1.30345442,47445.0,47444.0,0.188]
[1641087018417,1.30345442,47445.0,47443.0,1.19774726]
[1641087018821,0.18,47446.0,47444.0,0.83843095]
[1641087019721,0.1121484,47445.0,47444.0,0.83843095]
[1641087020723,1.3135082,47447.0,47444.0,0.83843095]
[1641087021123,0.35700913,47445.0,47444.0,1.02743095]
[1641087021325,0.35700913,47445.0,47444.0,0.189]
[1641087021824,0.95202435,47447.0,47444.0,0.189]
[1641087022026,0.35700913,47447.0,47444.0,0.189]
[1641087022425,0.35700913,47447.0,47442.0,0.14033567]
[1641087023125,0.35700913,47447.0,47442.0,0.32833567]
[1641087024929,0.35700913,47447.0,47442.0,0.14033567]
[1641087025128,0.35700913,47447.0,47442.0,0.32633567]
[1641087025326,0.35700913,47448.0,47442.0,0.32633567]
[1641087026426,0.35700913,47448.0,47442.0,0.14033567]
[1641087026626,0.35700913,47447.0,47442.0,0.14033567]
[1641087027126,0.35700913,47447.0,47442.0,0.32533567]
[1641087027938,0.35700913,47448.0,47442.0,0.32533567]
[1641087028342,0.35700913,47448.0,47442.0,0.185]
[1641087028538,0.35700913,47448.0,47440.0,0.83843095]
[1641087028737,0.35700913,47448.0,47442.0,0.14033567]
[1641087031143,0.35700913,47448.0,47442.0,0.32333567]
[1641087031341,0.35700913,47447.0,47442.0,0.32333567]
[1641087032442,0.35700913,47447.0,47442.0,0.14033567]
[1641087033142,0.35700913,47447.0,47442.0,0.32433567]
[1641087034444,0.35700913,47447.0,47442.0,0.14033567]
[1641087035143,0.35700913,47447.0,47442.0,0.32233567]
[1641087035447,0.59501522,47448.0,47442.0,0.32233567]
[1641087035448,0.35700913,47446.0,47442.0,0.32233567]
[1641087037050,0.35700913,47446.0,47442.0,0.14033567]
[1641087037248,0.35700913,47446.0,47442.0,0.32333567]
[1641087038452,0.35700913,47447.0,47442.0,0.32333567]
[1641087038651,0.35700913,47447.0,47442.0,0.20645567]
[1641087039154,0.35700913,47448.0,47442.0,0.38745567]
[1641087040453,0.35700913,47448.0,47442.0,0.20645567]
[1641087041156,0.35700913,47448.0,47442.0,0.38545567]
[1641087042361,0.35700913,47449.0,47442.0,0.38545567]
[1641087042558,0.35700913,47449.0,47442.0,0.20645567]
[1641087043157,0.35700913,47448.0,47442.0,0.38245567]
[1641087044558,0.35700913,47448.0,47442.0,0.20645567]
[1641087045157,0.18,47447.0,47442.0,0.31933567]
[1641087045657,0.35700913,47448.0,47442.0,0.31933567]
[1641087045658,0.35700913,47446.0,47442.0,0.31933567]
[1641087046558,0.35700913,47446.0,47442.0,0.14033567]
[1641087047161,0.18,47448.0,47442.0,0.32333567]
[1641087047361,0.11153974,47445.0,47442.0,0.32333567]
[1641087047561,0.11153974,47445.0,47443.0,1.19774726]
[1641087047762,1.19003045,47444.0,47443.0,1.19774726]
[1641087048465,1.19003045,47444.0,47442.0,0.14033567]
[1641087048666,0.11153974,47444.0,47442.0,0.14033567]
[1641087049264,0.94394749,47443.0,47442.0,0.32733567]
[1641087050466,0.94394749,47444.0,47442.0,0.14033567]
[1641087051166,0.11153974,47443.0,47442.0,0.32733567]
[1641087052565,0.11153974,47443.0,47442.0,0.14033567]
[1641087053366,0.11153974,47443.0,47442.0,0.32933567]
[1641087053868,0.94394749,47443.0,47442.0,0.32933567]
[1641087054570,0.11153974,47443.0,47442.0,0.14033567]
[1641087055167,0.83240775,47444.0,47442.0,0.32933567]
[1641087055367,0.59368113,47444.0,47442.0,0.32933567]
[1641087056470,0.59368113,47444.0,47442.0,0.14033567]
[1641087057172,0.59368113,47444.0,47442.0,0.32633567]
[1641087059176,0.59368113,47444.0,47442.0,0.32733567]
[1641087059778,0.59368113,47443.0,47442.0,0.32733567]
[1641087060577,0.59368113,47444.0,47442.0,0.14033567]
[1641087061280,0.59368113,47443.0,47442.0,0.32833567]
[1641087062480,0.59368113,47443.0,47442.0,0.14033567]
[1641087063276,0.83240775,47445.0,47442.0,0.14033567]
[1641087063277,0.59368113,47444.0,47442.0,0.32933567]
[1641087064578,0.59368113,47444.0,47442.0,0.14033567]
[1641087065181,0.59368113,47444.0,47442.0,0.32833567]
[1641087066580,0.59368113,47444.0,47442.0,0.14033567]
[1641087067079,0.35599049,47443.0,47442.0,0.14033567]
[1641087067280,0.35599049,47443.0,47442.0,0.32833567]
[1641087067580,0.59368113,47444.0,47442.0,0.32833567]
[1641087068682,0.59368113,47444.0,47442.0,0.14033567]
[1641087069298,0.59368113,47444.0,47442.0,0.32833567]
[1641087069996,0.59368113,47444.0,47442.0,0.34941283]
[1641087070198,1.19003045,47448.0,47443.0,0.20107455]
[1641087070398,1.19003045,47448.0,47443.0,0.21305005]
[1641087070595,1.19003045,47448.0,47444.0,1.0658155]
[1641087071096,1.19003045,47448.0,47447.0,0.001]
[1641087071297,1.19003045,47448.0,47447.0,0.14133567]
[1641087072496,1.19003045,47453.0,47447.0,0.14133567]
[1641087072697,1.19003045,47453.0,47447.0,0.14033567]
[1641087073198,1.19003045,47453.0,47447.0,0.33233567]
[1641087073400,0.10805696,47452.0,47447.0,0.33233567]
[1641087073997,0.10805696,47453.0,47447.0,0.33233567]
[1641087074597,0.10805696,47453.0,47447.0,0.14033567]
[1641087075197,0.10805696,47453.0,47447.0,0.33233567]
[1641087075396,0.10805696,47453.0,47451.0,0.18]
[1641087075597,0.10805696,47453.0,47451.0,0.2544]
[1641087076298,0.10805696,47453.0,47451.0,0.0744]
[1641087076699,0.10805696,47453.0,47452.0,1.19730818]
[1641087077300,0.10805696,47453.0,47452.0,1.38930818]
[1641087077503,0.10805696,47454.0,47452.0,1.38930818]
[1641087077903,0.10805696,47454.0,47453.0,0.02107203]
[1641087078102,1.19003045,47455.0,47453.0,0.02107203]
[1641087078303,1.19003045,47456.0,47453.0,0.02107203]
[1641087079202,1.19003045,47456.0,47453.0,0.21307203]
[1641087079403,0.8322245,47457.0,47455.0,1.33764385]
[1641087079804,0.8322245,47457.0,47456.0,0.0210701]
[1641087081207,0.8322245,47457.0,47456.0,0.2140701]
[1641087081405,0.59456146,47457.0,47456.0,1.41137828]
[1641087082105,0.59456146,47457.0,47456.0,0.2140701]
[1641087082707,0.59456146,47457.0,47456.0,0.0220701]
[1641087083005,1.3135082,47464.0,47456.0,1.0756661]
[1641087083205,1.42016508,47468.0,47463.0,0.98]
[1641087083406,1.30922729,47465.0,47463.0,1.06247]
[1641087083605,1.30922729,47465.0,47464.0,0.001]
[1641087084006,1.42016508,47469.0,47464.0,0.001]
[1641087084304,1.8891,47473.0,47463.0,1.06247]
[1641087084506,1.42016508,47474.0,47463.0,1.06247]
[1641087085204,1.42016508,47476.0,47463.0,1.24947]
[1641087085404,1.42016508,47476.0,47469.0,0.14033567]
[1641087086705,0.15012967,47481.0,47469.0,0.14033567]
[1641087087107,0.15012967,47481.0,47470.0,0.2010646]
[1641087087406,0.0210646,47488.0,47470.0,0.2010646]
[1641087087407,0.35636446,47483.0,47476.0,0.14033567]
[1641087087610,0.35636446,47483.0,47476.0,0.20485567]
[1641087088506,0.35636446,47483.0,47476.0,0.22591763]
[1641087089306,0.35636446,47486.0,47476.0,0.41191763]
[1641087089506,0.18,47484.0,47476.0,0.41191763]
[1641087090608,0.18,47484.0,47476.0,0.22591763]
[1641087091208,0.49670013,47487.0,47476.0,0.40591763]
[1641087091409,0.14033567,47487.0,47476.0,0.40591763]
[1641087092109,0.14033567,47487.0,47476.0,0.58591763]
[1641087092509,0.14033567,47487.0,47476.0,0.40591763]
[1641087093210,0.14033567,47487.0,47476.0,0.57091763]
[1641087094609,0.14033567,47487.0,47480.0,0.02105994]
[1641087095211,0.14033567,47487.0,47480.0,0.18205994]
[1641087096610,0.14033567,47487.0,47480.0,0.02105994]
[1641087097312,0.14033567,47487.0,47480.0,0.17705994]
[1641087098614,0.14033567,47487.0,47480.0,0.02105994]
[1641087099216,0.14033567,47487.0,47480.0,0.17705994]
[1641087100621,1.42016508,47482.0,47480.0,0.17705994]
[1641087100818,1.42016508,47482.0,47480.0,0.02105994]
[1641087101320,1.42016508,47482.0,47480.0,0.21205994]
[1641087103123,1.42016508,47482.0,47480.0,0.02105994]
[1641087103330,1.42016508,47482.0,47480.0,0.21205994]
[1641087103724,1.42016508,47482.0,47481.0,0.14033567]
[1641087105227,1.42016508,47482.0,47481.0,0.33133567]
[1641087106629,1.31552408,47484.0,47481.0,0.33133567]
[1641087107229,1.31552408,47484.0,47481.0,0.32433567]
[1641087108528,1.31552408,47484.0,47481.0,0.14033567]
[1641087109229,1.31552408,47484.0,47481.0,0.32433567]
[1641087109930,0.009794,47488.0,47481.0,0.32433567]
[1641087109931,1.1958999,47482.0,47481.0,0.32433567]
[1641087110630,1.1958999,47482.0,47481.0,0.14033567]
[1641087111232,1.1958999,47484.0,47481.0,0.33033567]
[1641087111733,0.92744312,47482.0,47481.0,0.33033567]
[1641087112533,0.83708306,47482.0,47481.0,0.33033567]
[1641087112734,0.59790014,47482.0,47481.0,0.14033567]
[1641087113334,0.59790014,47482.0,47481.0,0.32933567]
[1641087113534,0.83708306,47483.0,47481.0,0.32933567]
[1641087113735,0.83708306,47482.0,47481.0,0.32933567]
[1641087114636,0.92685933,47482.0,47481.0,0.14033567]
[1641087115246,0.83708306,47482.0,47481.0,0.14033567]
[1641087115441,0.83708306,47482.0,47481.0,0.32933567]
[1641087115638,0.59719724,47482.0,47481.0,0.32933567]
[1641087116239,0.83708306,47483.0,47481.0,0.32933567]
[1641087116438,0.08977636,47482.0,47481.0,0.32933567]
[1641087116642,0.26977636,47482.0,47481.0,0.14033567]
[1641087116843,1.104,47481.0,47470.0,1.31193331]
[1641087117041,0.18,47471.0,47467.0,1.691077]
[1641087117241,0.27361,47471.0,47468.0,1.31550706]
[1641087117442,0.27361,47471.0,47470.0,0.145]
[1641087117856,0.41394567,47471.0,47470.0,0.145]
[1641087118458,0.23394567,47471.0,47470.0,0.145]
[1641087118654,0.23394567,47471.0,47458.0,0.16140562]
[1641087118855,0.23394567,47471.0,47458.0,0.96140562]
[1641087119255,0.23394567,47471.0,47459.0,1.06538955]
[1641087119455,0.14033567,47471.0,47463.0,0.02106756]
[1641087120255,0.14033567,47471.0,47466.0,0.02106618]
[1641087121458,0.14033567,47471.0,47466.0,0.21006618]
[1641087122557,0.14033567,47471.0,47466.0,0.02106618]
[1641087123359,0.14033567,47471.0,47466.0,0.21006618]
[1641087124661,0.14033567,47471.0,47466.0,0.02106618]
[1641087125364,0.14033567,47471.0,47466.0,0.21006618]
[1641087126765,0.73534706,47471.0,47466.0,0.21006618]
[1641087127264,0.73534706,47471.0,47466.0,0.02106618]
[1641087127463,0.73534706,47471.0,47466.0,0.20906618]
[1641087127665,0.59501139,47471.0,47466.0,0.20906618]
[1641087128165,0.73534706,47471.0,47466.0,0.20906618]
[1641087128671,0.73534706,47471.0,47466.0,0.02106618]
[1641087129367,0.73534706,47471.0,47466.0,0.20806618]
[1641087130668,0.73534706,47471.0,47466.0,0.02106618]
[1641087131368,0.73534706,47471.0,47466.0,0.20806618]
[1641087132672,0.73534706,47471.0,47466.0,0.02106618]
[1641087132873,0.73534706,47471.0,47470.0,0.59818577]
[1641087133476,0.73534706,47471.0,47470.0,0.78518577]
[1641087134774,0.73534706,47471.0,47470.0,0.59818577]
[1641087135174,0.24524741,47471.0,47470.0,0.59818577]
[1641087135373,0.24524741,47471.0,47470.0,0.78318577]
[1641087135775,1.0781736,47471.0,47470.0,0.78318577]
[1641087136774,1.0781736,47471.0,47470.0,0.59818577]
[1641087137575,1.0781736,47471.0,47470.0,0.78318577]
[1641087138075,0.24524741,47471.0,47470.0,0.78318577]
[1641087138277,0.24524741,47471.0,47470.0,0.185]
[1641087138776,0.24524741,47471.0,47468.0,0.59818577]
[1641087139377,0.24524741,47471.0,47468.0,0.78118577]
[1641087140081,0.94074514,47470.0,47468.0,0.78118577]
[1641087140579,0.8358334,47470.0,47468.0,0.183]
[1641087140778,0.59711807,47470.0,47469.0,0.83746008]
[1641087141182,0.77711807,47470.0,47469.0,0.83746008]
[1641087141479,0.77711807,47470.0,47469.0,1.02446008]
[1641087141682,0.77711807,47470.0,47469.0,0.187]
[1641087141879,0.18,47470.0,47469.0,0.187]
[1641087142479,0.28606623,47470.0,47469.0,0.187]
[1641087142680,0.28606623,47470.0,47464.0,0.598329]
[1641087142880,0.18,47465.0,47464.0,0.598329]
[1641087143483,0.18,47465.0,47464.0,0.769329]
[1641087143683,0.18,47465.0,47464.0,0.171]
[1641087144285,0.28606623,47465.0,47464.0,0.171]
[1641087144486,0.4264019,47465.0,47464.0,0.171]
[1641087144682,0.4264019,47465.0,47462.0,0.598329]
[1641087145184,1.6190613,47465.0,47462.0,0.598329]
[1641087145383,1.6190613,47465.0,47462.0,0.771329]
[1641087145783,0.83512859,47463.0,47462.0,0.771329]
[1641087146686,0.83512859,47463.0,47462.0,0.598329]
[1641087147490,0.83512859,47463.0,47462.0,0.775329]
[1641087148588,0.97546426,47463.0,47462.0,0.775329]
[1641087148788,0.97546426,47463.0,47462.0,0.598329]
[1641087149387,0.97546426,47463.0,47462.0,0.775329]
[1641087149587,1.08153049,47463.0,47462.0,0.775329]
[1641087150689,1.08153049,47463.0,47462.0,0.598329]
[1641087151291,0.2464019,47463.0,47458.0,1.19637154]
[1641087151505,0.18,47459.0,47457.0,1.45031897]
[1641087151707,0.18,47458.0,47457.0,1.45031897]
[1641087152306,0.7766298,47458.0,47456.0,1.31560494]
[1641087152513,0.91696547,47458.0,47456.0,1.31560494]
[1641087152806,0.5966298,47457.0,47456.0,1.31560494]
[1641087153406,0.5966298,47457.0,47456.0,1.49860494]
[1641087154610,0.32033567,47458.0,47456.0,0.183]
[1641087154908,0.32033567,47458.0,47454.0,0.83716587]
[1641087155509,0.32033567,47458.0,47455.0,0.8491391]
[1641087155909,0.32033567,47458.0,47456.0,0.01197323]
[1641087157208,0.14033567,47458.0,47456.0,0.01197323]
[1641087157508,0.14033567,47458.0,47456.0,0.19297323]
[1641087157912,0.14033567,47458.0,47456.0,0.181]
[1641087158310,0.009794,47457.0,47456.0,0.181]
[1641087158509,0.24385967,47457.0,47445.0,3.35566798]
[1641087158708,0.18,47452.0,47445.0,1.43736798]
[1641087158908,0.009794,47451.0,47445.0,1.43736798]
[1641087159109,0.009794,47451.0,47446.0,0.01197519]
[1641087159511,0.198794,47451.0,47446.0,0.01197519]
[1641087159708,0.198794,47451.0,47442.0,0.03305186]
[1641087160110,0.198794,47451.0,47442.0,0.02107667]
[1641087160509,0.14033567,47444.0,47443.0,0.01197578]
[1641087160711,0.21084567,47444.0,47443.0,0.01197578]
[1641087161513,0.38684567,47444.0,47443.0,0.19197578]
[1641087162112,0.38684567,47444.0,47443.0,0.18]
[1641087162312,0.38684567,47444.0,47443.0,0.19197615]
[1641087162713,0.21084567,47444.0,47443.0,0.01197615]
[1641087162916,0.39084567,47444.0,47443.0,0.01197615]
[1641087163213,0.40063967,47444.0,47435.0,0.3445]
[1641087163413,0.40563967,47444.0,47435.0,0.3445]
[1641087163615,0.18,47439.0,47435.0,0.3445]
[1641087164214,0.18,47439.0,47432.0,1.57212054]
[1641087164415,0.00684066,47438.0,47436.0,0.01197756]
[1641087164716,0.14033567,47437.0,47433.0,0.01197756]
[1641087164915,0.14033567,47437.0,47427.0,1.45845123]
[1641087165215,0.00684066,47436.0,47434.0,0.01197774]
[1641087165616,0.33233567,47437.0,47428.0,0.01197774]
[1641087165814,0.33233567,47437.0,47435.0,0.01197774]
[1641087166014,0.33233567,47437.0,47430.0,1.31609327]
[1641087166214,0.33233567,47437.0,47436.0,0.01197774]
[1641087166416,0.33233567,47437.0,47427.0,1.45845123]
[1641087166417,0.33233567,47437.0,47431.0,0.01197774]
[1641087166816,0.14033567,47437.0,47430.0,0.01197774]
[1641087167016,0.14033567,47437.0,47432.0,0.01197774]
[1641087167216,0.14033567,47437.0,47432.0,0.05712]
[1641087167417,0.33533567,47437.0,47433.0,1.19643216]
[1641087167617,0.33533567,47437.0,47433.0,1.2084099]
[1641087167817,0.33533567,47437.0,47434.0,0.01197774]
[1641087168218,0.33533567,47437.0,47434.0,1.2084099]
[1641087168519,0.33533567,47437.0,47435.0,0.01197774]
[1641087168718,0.14033567,47437.0,47435.0,0.01197774]
[1641087169420,0.33633567,47437.0,47435.0,0.01197774]
[1641087170420,0.00672078,47436.0,47435.0,0.01197774]
[1641087171520,0.20372078,47436.0,47435.0,0.01197774]
[1641087171921,0.20372078,47436.0,47433.0,0.01197774]
[1641087172423,0.20372078,47436.0,47435.0,0.01197774]